bitfinex-derivatives/quotes_BTCF0:USTF0_20251214
["timestamp","ask_amount","ask_price","bid_price","bid_amount"]
[1765686353627,0.02723422,90347.0,90346.0,1.17580558]
[1765686353829,0.004,90347.0,90346.0,1.17580558]
[1765686356931,0.02723619,90347.0,90346.0,1.17580558]
[1765686358437,0.004,90347.0,90346.0,1.17580558]
[1765686359335,0.002,90347.0,90346.0,1.17580558]
[1765686359534,0.07294,90358.0,90357.0,0.05863]
[1765686359734,0.07294,90358.0,90357.0,0.74915]
[1765686361735,0.07494,90358.0,90357.0,0.74915]
[1765686362623,0.07694,90358.0,90357.0,0.74915]
[1765686385255,0.07694,90358.0,90357.0,0.72001]
[1765686385848,0.07694,90358.0,90357.0,0.74793]
[1765686387662,0.0686372,90349.0,90348.0,0.16332509]
[1765686387863,0.4294372,90349.0,90348.0,0.05553]
[1765686391868,0.05757,90347.0,90346.0,0.00016609]
[1765686392065,0.05757,90347.0,90346.0,0.02777609]
[1765686392466,0.05757,90347.0,90346.0,0.05569609]
[1765686393567,0.05857,90347.0,90346.0,0.05569609]
[1765686394376,0.05957,90347.0,90346.0,0.05569609]
[1765686395076,0.05857,90347.0,90346.0,0.05569609]
[1765686395377,0.05957,90347.0,90346.0,0.05569609]
[1765686415889,0.42037,90347.0,90346.0,0.05569609]
[1765686418491,0.44371003,90347.0,90346.0,0.05569609]
[1765686433503,0.08291003,90347.0,90346.0,0.05569609]
[1765686433803,0.44371003,90347.0,90346.0,0.05569609]
[1765686435604,0.08291003,90347.0,90346.0,0.05569609]
[1765686435804,0.44371003,90347.0,90346.0,0.05569609]
[1765686437604,0.08291003,90347.0,90346.0,0.05569609]
[1765686437805,0.44371003,90347.0,90346.0,0.05569609]
[1765686438904,0.46022003,90347.0,90346.0,0.05569609]
[1765686440005,0.09942003,90347.0,90346.0,0.05569609]
[1765686440204,0.46022003,90347.0,90346.0,0.05569609]
[1765686441005,0.09942003,90347.0,90346.0,0.05569609]
[1765686441205,0.46022003,90347.0,90346.0,0.05569609]
[1765686442500,0.09942003,90347.0,90346.0,0.05569609]
[1765686442705,0.46022003,90347.0,90346.0,0.05569609]
[1765686443406,0.09942003,90347.0,90346.0,0.05569609]
[1765686443707,0.46022003,90347.0,90346.0,0.05569609]
[1765686445613,0.09942003,90347.0,90346.0,0.05569609]
[1765686445815,0.46022003,90347.0,90346.0,0.05569609]
[1765686448324,0.43688,90347.0,90346.0,0.05569609]
[1765686448521,0.07608,90347.0,90346.0,0.05569609]
[1765686456223,0.07608,90347.0,90346.0,0.00016609]
[1765686456522,0.4966587,90347.0,90346.0,0.00016609]
[1765686458026,0.43688,90347.0,90346.0,0.00016609]
[1765686459327,0.49664878,90347.0,90346.0,0.00016609]
[1765686461924,0.43688,90347.0,90346.0,0.00016609]
[1765686462517,0.49663878,90347.0,90346.0,0.00016609]
[1765686462720,0.43688,90347.0,90346.0,0.00016609]
[1765686463431,0.49663626,90347.0,90346.0,0.00016609]
[1765686478434,0.46031072,90347.0,90346.0,0.00016609]
[1765686487547,0.09951072,90347.0,90346.0,0.00016609]
[1765686487764,0.46031072,90347.0,90346.0,0.00016609]
[1765686493352,0.09951072,90347.0,90346.0,0.00016609]
[1765686493653,0.46031072,90347.0,90346.0,0.00016609]
[1765686499656,0.46032656,90347.0,90346.0,0.00016609]
[1765686501262,0.0864795,90331.0,90330.0,0.0572]
[1765686501556,0.10992606,90331.0,90330.0,0.0572]
[1765686501856,0.09885656,90331.0,90330.0,0.0572]
[1765686502259,0.09885656,90331.0,90330.0,0.0582]
[1765686502658,0.10992606,90331.0,90330.0,0.0582]
[1765686503864,0.10992606,90331.0,90330.0,0.0592]
[1765686504360,0.10992606,90331.0,90330.0,0.0582]
[1765686505361,0.10992606,90331.0,90330.0,0.0572]
[1765686509752,0.47072606,90331.0,90330.0,0.0572]
[1765686515574,0.47069479,90331.0,90330.0,0.0682696]
[1765686516273,0.47069479,90331.0,90330.0,0.0572]
[1765686518767,0.10989479,90331.0,90330.0,0.0572]
[1765686518961,0.10989479,90331.0,90328.0,0.6906]
[1765686518962,0.05709,90329.0,90328.0,0.71874]
[1765686519167,0.08050529,90329.0,90328.0,0.6906]
[1765686519366,0.08050529,90329.0,90328.0,0.71874]
[1765686521476,0.08050529,90329.0,90328.0,0.74625]
[1765686526778,0.44130529,90329.0,90328.0,0.74625]
[1765686537683,0.08050529,90329.0,90328.0,0.74625]
[1765686537873,0.44130529,90329.0,90328.0,0.74625]
[1765686542590,0.08050529,90329.0,90328.0,0.74625]
[1765686542782,0.44130529,90329.0,90328.0,0.74625]
[1765686544796,0.44149722,90329.0,90328.0,0.74625]
[1765686548993,0.45923722,90329.0,90328.0,0.74625]
[1765686549892,0.38440722,90329.0,90328.0,0.74625]
[1765686551993,0.02360722,90329.0,90328.0,0.74625]
[1765686575010,0.02360722,90329.0,90328.0,0.75518]
[1765686577214,0.02360722,90329.0,90328.0,0.74625]
[1765686581216,0.07437,90338.0,90337.0,0.0670987]
[1765686581418,0.09781668,90338.0,90337.0,0.7578187]
[1765686582617,0.09981668,90338.0,90337.0,0.7578187]
[1765686583313,0.10081668,90338.0,90337.0,0.7578187]
[1765686588617,0.02644668,90338.0,90337.0,0.7578187]
[1765686589414,0.05568668,90338.0,90337.0,0.7578187]
[1765686589822,0.10085668,90338.0,90337.0,0.7578187]
[1765686590017,0.09985668,90338.0,90337.0,0.7578187]
[1765686590723,0.09885668,90338.0,90337.0,0.7578187]
[1765686590914,0.09985668,90338.0,90337.0,0.7578187]
[1765686598425,0.07641,90338.0,90337.0,0.7578187]
[1765686618653,0.002,90338.0,90337.0,0.7578187]
[1765686619357,0.002,90338.0,90337.0,0.80100992]
[1765686619553,0.002,90338.0,90337.0,0.8408287]
[1765686620046,0.001,90338.0,90337.0,0.8408287]
[1765686620247,0.00016609,90340.0,90339.0,0.05668]
[1765686621461,0.00116609,90340.0,90339.0,0.05668]
[1765686621850,0.00216609,90340.0,90339.0,0.05668]
[1765686626047,0.00116609,90340.0,90339.0,0.05668]
[1765686626248,0.00216609,90340.0,90339.0,0.05668]
[1765686628651,0.02572003,90340.0,90339.0,0.05668]
[1765686629158,0.02472003,90340.0,90339.0,0.05668]
[1765686630259,0.02372003,90340.0,90339.0,0.05668]
[1765686651864,0.02372003,90340.0,90339.0,0.41748]
[1765686658581,0.02372003,90340.0,90339.0,0.05668]
[1765686658780,0.02372003,90340.0,90339.0,0.41748]
[1765686677692,0.02372003,90340.0,90339.0,0.05668]
[1765686677985,0.02372003,90340.0,90339.0,0.41748]
[1765686679591,0.02372003,90340.0,90339.0,0.05668]
[1765686679794,0.02372003,90340.0,90339.0,0.41748]
[1765686686703,0.0467,90354.0,90353.0,0.05865]
[1765686686908,0.07603,90354.0,90353.0,0.74925]
[1765686687900,0.07803,90354.0,90353.0,0.74925]
[1765686689309,0.08003,90354.0,90353.0,0.74925]
[1765686698616,0.1033117,90354.0,90353.0,0.74925]
[1765686700720,0.0272817,90354.0,90353.0,0.74925]
[1765686701825,0.1033117,90354.0,90353.0,0.74925]
[1765686702223,0.0739817,90354.0,90353.0,0.74925]
[1765686708426,0.07398002,90354.0,90353.0,0.74925]
[1765686708922,0.02728002,90354.0,90353.0,0.74925]
[1765686724028,0.02728002,90354.0,90353.0,1.11005]
[1765686726219,0.00375062,90354.0,90353.0,1.11005]
[1765686727234,0.07426,90360.0,90359.0,0.05754]
[1765686728336,0.07426,90360.0,90359.0,0.068606]
[1765686729223,0.07626,90360.0,90359.0,0.068606]
[1765686729537,0.07826,90360.0,90359.0,0.068606]
[1765686746651,0.07511,90352.0,90351.0,0.03978288]
[1765686746843,0.07511,90345.0,90344.0,0.02729609]
[1765686747042,0.07511,90345.0,90344.0,0.06793578]
[1765686747849,0.07511,90345.0,90344.0,0.05671609]
[1765686755853,0.07511,90345.0,90344.0,0.06778399]
[1765686772269,0.07611,90345.0,90344.0,0.06778399]
[1765686772769,0.07711,90345.0,90344.0,0.06778399]
[1765686778373,0.07711,90345.0,90344.0,0.05671609]
[1765686779274,0.07711,90345.0,90344.0,0.06778399]
[1765686821235,0.0881777,90345.0,90344.0,0.06778399]
[1765686839360,0.07711,90345.0,90344.0,0.06778399]
[1765686843662,0.00166782,90345.0,90344.0,0.42858399]
[1765686843860,0.0110657,90362.0,90359.0,0.05809]
[1765686844060,0.04718,90366.0,90365.0,0.05809]
[1765686844268,0.01738,90369.0,90368.0,0.05809]
[1765686844469,0.07606,90369.0,90368.0,0.05809]
[1765686845667,0.07606,90369.0,90362.0,0.3608]
[1765686845668,0.07606,90363.0,90362.0,0.10176324]
[1765686846171,0.07606,90360.0,90359.0,0.71954]
[1765686846967,0.07606,90360.0,90359.0,0.74865]
[1765686848570,0.07706,90360.0,90359.0,0.74865]
[1765686859575,0.07706,90360.0,90359.0,0.759716]
[1765686871690,0.01838,90360.0,90359.0,0.759716]
[1765686872189,0.04721,90360.0,90359.0,0.759716]
[1765686890301,0.07593,90360.0,90359.0,0.759716]
[1765686895911,0.07593,90360.0,90359.0,0.74865]
[1765686902616,0.07593,90360.0,90359.0,0.69056]
[1765686902816,0.07593,90360.0,90350.0,0.10779588]
[1765686902817,0.001,90360.0,90350.0,0.10779588]
[1765686903022,0.428797,90351.0,90350.0,0.16584588]
[1765686903323,0.428797,90351.0,90350.0,0.05805]
[1765686903811,0.428797,90351.0,90350.0,0.05905]
[1765686904118,0.428797,90351.0,90350.0,0.06005]
[1765686904308,0.428797,90351.0,90350.0,0.05905]
[1765686904617,0.428797,90351.0,90350.0,0.06005]
[1765686905818,0.428797,90351.0,90350.0,0.05905]
[1765686906019,0.428797,90351.0,90350.0,0.06005]
[1765686917223,0.067997,90351.0,90350.0,0.06005]
[1765686928332,0.067997,90351.0,90350.0,0.0711171]
[1765686930029,0.067997,90351.0,90350.0,0.06005]
[1765686930933,0.067997,90351.0,90350.0,0.05905]
[1765686931131,0.067997,90351.0,90350.0,0.05805]
[1765686936841,0.068997,90351.0,90350.0,0.05805]
[1765686937537,0.067997,90351.0,90350.0,0.05805]
[1765686940947,0.068997,90351.0,90350.0,0.05805]
[1765686942045,0.085977,90351.0,90350.0,0.05805]
[1765686942245,0.085977,90351.0,90350.0,0.0691171]
[1765686942444,0.07491,90351.0,90350.0,0.0691171]
[1765686943645,0.07391,90351.0,90350.0,0.0691171]
[1765686956661,0.07391,90351.0,90350.0,0.05805]
[1765686962066,0.07491,90351.0,90350.0,0.05805]
[1765686963467,0.07391,90351.0,90350.0,0.05805]
[1765686969671,0.07491,90351.0,90350.0,0.05805]
[1765686974171,0.07409,90348.0,90347.0,0.43091]
[1765686974374,0.07409,90348.0,90347.0,0.40248]
[1765686974761,0.07409,90348.0,90347.0,0.45983]
[1765686976368,0.07409,90348.0,90347.0,0.4708975]
[1765686976569,0.07409,90348.0,90347.0,0.45983]
[1765686984476,0.43489,90348.0,90347.0,0.45983]
[1765686984776,0.07409,90348.0,90347.0,0.45983]
[1765686984972,0.43489,90348.0,90347.0,0.45983]
[1765686986378,0.07409,90348.0,90347.0,0.45983]
[1765686986578,0.43489,90348.0,90347.0,0.45983]
[1765686987473,0.07409,90348.0,90347.0,0.45983]
[1765686987680,0.43489,90348.0,90347.0,0.45983]
[1765686988479,0.07409,90348.0,90347.0,0.45983]
[1765686988675,0.43489,90348.0,90347.0,0.45983]
[1765686994478,0.07409,90348.0,90347.0,0.45983]
[1765686994677,0.43489,90348.0,90347.0,0.45983]
[1765687004792,0.43489,90348.0,90347.0,0.43091]
[1765687005195,0.43489,90348.0,90347.0,0.45981]
[1765687019602,0.43489,90348.0,90344.0,0.02750609]
[1765687019603,0.05652,90345.0,90344.0,0.02750609]
[1765687019797,0.43733061,90348.0,90334.0,0.05587]
[1765687019798,0.067589,90335.0,90334.0,0.05587]
[1765687019998,0.428389,90335.0,90334.0,0.05587]
[1765687021792,0.428389,90335.0,90334.0,0.05687]
[1765687022296,0.428389,90335.0,90334.0,0.05587]
[1765687028108,0.068589,90335.0,90334.0,0.05587]
[1765687028411,0.429389,90335.0,90334.0,0.05587]
[1765687028810,0.430389,90335.0,90334.0,0.05587]
[1765687036319,0.0675899,90327.0,90326.0,0.01962975]
[1765687036620,0.4283899,90327.0,90326.0,0.01962975]
[1765687036807,0.41732,90327.0,90326.0,0.01962975]
[1765687037825,0.41732,90327.0,90326.0,0.02062975]
[1765687038718,0.41732,90327.0,90326.0,0.02162975]
[1765687042526,0.05652,90327.0,90326.0,0.02162975]
[1765687048613,0.07976285,90327.0,90326.0,0.02162975]
[1765687060625,0.07976285,90327.0,90326.0,0.02062975]
[1765687061735,0.07976285,90327.0,90326.0,0.01962975]
[1765687067529,0.05025285,90327.0,90326.0,0.01962975]
[1765687068036,0.07845285,90327.0,90326.0,0.01962975]
[1765687069639,0.07845285,90327.0,90326.0,0.02062975]
[1765687070736,0.07845285,90327.0,90326.0,0.01962975]
[1765687070934,0.07845285,90327.0,90326.0,0.02062975]
[1765687072333,0.07845285,90327.0,90326.0,0.01962975]
[1765687072636,0.07845285,90327.0,90326.0,0.02062975]
[1765687075537,0.07845285,90327.0,90326.0,0.01962975]
[1765687075840,0.07845285,90327.0,90326.0,0.02062975]
[1765687095262,0.08952275,90327.0,90326.0,0.02062975]
[1765687097264,0.08952275,90327.0,90326.0,0.01962975]
[1765687097465,0.08952275,90327.0,90326.0,0.02062975]
[1765687099762,0.07845285,90327.0,90326.0,0.02062975]
[1765687102071,0.09574285,90327.0,90326.0,0.02062975]
[1765687110377,0.09574285,90327.0,90326.0,0.01200975]
[1765687110675,0.09574285,90327.0,90326.0,0.01631975]
[1765687111171,0.09574285,90327.0,90326.0,0.02062975]
[1765687116477,0.09574285,90327.0,90326.0,0.01962975]
[1765687116678,0.09574285,90327.0,90326.0,0.02062975]
[1765687117082,0.09574285,90327.0,90326.0,0.01962975]
[1765687117277,0.09574285,90327.0,90326.0,0.02062975]
[1765687125980,0.09574285,90327.0,90326.0,0.01631975]
[1765687127391,0.09574285,90327.0,90326.0,0.02062975]
[1765687129288,0.09574285,90327.0,90326.0,0.01962975]
[1765687132085,0.09574285,90327.0,90326.0,0.07212012]
[1765687134192,0.09574285,90327.0,90326.0,0.08319022]
[1765687142601,0.09574285,90327.0,90326.0,0.03069985]
[1765687154217,0.09574285,90327.0,90326.0,0.01962975]
[1765687167725,0.09574285,90327.0,90326.0,0.01531975]
[1765687170934,0.09574285,90327.0,90326.0,0.01962975]
[1765687182345,0.09574285,90327.0,90326.0,0.01531975]
[1765687196063,0.09574285,90327.0,90326.0,0.01962975]
[1765687201463,0.09574285,90327.0,90326.0,0.01531975]
[1765687201974,0.09574285,90327.0,90326.0,0.01962975]
[1765687209475,0.09574285,90327.0,90326.0,0.02062975]
[1765687228580,0.09574285,90327.0,90326.0,0.01631975]
[1765687234886,0.09574285,90327.0,90326.0,0.02062975]
[1765687240078,0.0964838,90327.0,90326.0,0.02062975]
[1765687247800,0.0964838,90327.0,90326.0,0.01631975]
[1765687248298,0.0964838,90327.0,90326.0,0.02062975]
[1765687262117,0.0964838,90327.0,90326.0,0.01631975]
[1765687263610,0.0964838,90327.0,90326.0,0.02062975]
[1765687273323,0.0964838,90327.0,90326.0,0.01631975]
[1765687274921,0.1075537,90327.0,90326.0,0.01631975]
[1765687275632,0.0828606,90322.0,90321.0,0.27530434]
[1765687275933,0.1068444,90322.0,90321.0,0.226564]
[1765687277127,0.1068444,90322.0,90321.0,0.227564]
[1765687277328,0.1068444,90322.0,90321.0,0.2166]
[1765687277922,0.1068444,90322.0,90321.0,0.2176]
[1765687278523,0.1068444,90322.0,90321.0,0.22862345]
[1765687279028,0.1068444,90322.0,90321.0,0.2176]
[1765687279834,0.1068444,90322.0,90321.0,0.2166]
[1765687283033,0.1068444,90322.0,90321.0,0.09167402]
[1765687283236,0.0663917,90313.0,90312.0,0.00016599]
[1765687283425,0.0903755,90313.0,90312.0,0.00016599]
[1765687284434,0.0903755,90313.0,90309.0,0.43292]
[1765687284435,0.07189,90310.0,90309.0,0.43292]
[1765687284634,0.0958738,90310.0,90309.0,0.43292]
[1765687285142,0.09583632,90310.0,90309.0,0.43292]
[1765687285529,0.09583632,90310.0,90309.0,0.43592]
[1765687285724,0.09583632,90310.0,90309.0,0.42739701]
[1765687285926,0.09583632,90310.0,90300.0,0.10802149]
[1765687285927,0.05787,90301.0,90300.0,0.10802149]
[1765687286135,0.44261632,90301.0,90300.0,0.00016609]
[1765687287040,0.44361632,90301.0,90300.0,0.00016609]
[1765687287339,0.44561632,90301.0,90300.0,0.00016609]
[1765687298248,0.44561632,90301.0,90300.0,0.02908609]
[1765687298646,0.44561632,90301.0,90300.0,0.00016609]
[1765687310760,0.44561632,90301.0,90300.0,0.05832609]
[1765687311060,0.44561632,90301.0,90300.0,0.07613609]
[1765687313262,0.50539015,90301.0,90300.0,0.07613609]
[1765687314264,0.44561632,90301.0,90300.0,0.07613609]
[1765687316466,0.44561632,90301.0,90300.0,0.00016609]
[1765687316778,0.44561632,90301.0,90276.0,0.05246686]
[1765687316779,0.01668,90292.0,90272.0,0.02743448]
[1765687316951,0.05756,90273.0,90272.0,0.07288448]
[1765687317152,0.08150632,90273.0,90272.0,0.07288448]
[1765687318175,0.08150632,90273.0,90272.0,0.07588448]
[1765687318661,0.08150632,90273.0,90272.0,0.07888448]
[1765687323564,0.02394632,90273.0,90272.0,0.07888448]
[1765687323766,0.05772609,90282.0,90281.0,0.05502]
[1765687324062,0.08210699,90282.0,90281.0,0.05502]
[1765687325058,0.08210699,90282.0,90281.0,0.05602]
[1765687325363,0.08210699,90282.0,90281.0,0.05802]
[1765687325751,0.08210699,90282.0,90281.0,0.03032]
[1765687326656,0.0853166,90273.0,90272.0,0.00011448]
[1765687326860,0.0853166,90273.0,90246.0,0.01775]
[1765687326861,0.0686398,90247.0,90246.0,0.01775]
[1765687327061,0.05756,90246.0,90245.0,0.2038]
[1765687327257,0.4427409,90246.0,90245.0,0.2038]
[1765687327452,0.4427409,90246.0,90232.0,1.05284]
[1765687327453,0.05756,90233.0,90232.0,1.05284]
[1765687327761,0.0819409,90233.0,90232.0,0.69204]
[1765687327955,0.05756,90224.0,90223.0,0.02748618]
[1765687328260,0.05756,90224.0,90223.0,0.00016618]
[1765687328461,0.08184764,90224.0,90223.0,0.00016618]
[1765687329056,0.08184764,90224.0,90223.0,0.00316618]
[1765687329253,0.0686426,90224.0,90223.0,0.00316618]
[1765687329854,0.0686426,90224.0,90223.0,0.00516618]
[1765687330058,0.05756,90224.0,90223.0,0.00516618]
[1765687330670,0.05756,90224.0,90223.0,0.00316618]
[1765687337271,0.05756,90224.0,90223.0,0.00216618]
[1765687339569,0.08169306,90224.0,90223.0,0.00216618]
[1765687339775,0.05756,90211.0,90198.0,0.01775]
[1765687339975,0.05756,90199.0,90198.0,0.0838557]
[1765687340281,0.05756,90199.0,90198.0,0.07277]
[1765687340664,0.05756,90199.0,90198.0,0.0838558]
[1765687341575,0.05756,90199.0,90198.0,0.0868558]
[1765687341977,0.02949,90199.0,90198.0,0.0868558]
[1765687342178,0.05756,90199.0,90198.0,0.0868558]
[1765687342772,0.05756,90199.0,90198.0,0.0898558]
[1765687344280,0.05772628,90208.0,90207.0,0.0661047]
[1765687345473,0.05772628,90208.0,90207.0,0.0671047]
[1765687346179,0.05772628,90208.0,90207.0,0.0691047]
[1765687350083,0.05772628,90208.0,90207.0,0.0140847]
[1765687350285,0.05772628,90208.0,90207.0,0.0438847]
[1765687350582,0.05772628,90208.0,90207.0,0.0716247]
[1765687352186,0.05772628,90208.0,90207.0,0.06054]
[1765687353281,0.08182776,90208.0,90207.0,0.06054]
[1765687353890,0.08182776,90208.0,90207.0,0.0328]
[1765687354276,0.08182776,90208.0,90207.0,0.06054]
[1765687354676,0.08182776,90208.0,90207.0,0.003]
[1765687357588,0.09839776,90208.0,90207.0,0.003]
[1765687357786,0.066016,90196.0,90195.0,0.41468051]
[1765687357998,0.09011748,90196.0,90195.0,0.44242051]
[1765687358190,0.09011748,90196.0,90195.0,0.41468051]
[1765687358390,0.07903148,90196.0,90195.0,0.41468051]
[1765687358793,0.07903148,90196.0,90195.0,0.41768051]
[1765687359093,0.07903148,90196.0,90195.0,0.42168051]
[1765687359292,0.07903148,90196.0,90195.0,0.39188051]
[1765687360081,0.07903148,90196.0,90195.0,0.00712051]
[1765687360584,0.07903148,90196.0,90195.0,0.08186051]
[1765687361185,0.07903148,90196.0,90195.0,0.07786051]
[1765687361896,0.07903148,90196.0,90195.0,0.07486051]
[1765687362597,0.09011748,90196.0,90195.0,0.07486051]
[1765687364889,0.07903148,90196.0,90195.0,0.07486051]
[1765687365497,0.07903148,90196.0,90195.0,0.04712051]
[1765687365803,0.07903148,90196.0,90195.0,0.00012051]
[1765687369307,0.07903148,90196.0,90195.0,0.05766051]
[1765687369503,0.07903148,90196.0,90195.0,0.00012051]
[1765687370000,0.07903148,90196.0,90195.0,0.05766051]
[1765687372388,0.1145207,90196.0,90195.0,0.05766051]
[1765687372594,0.13862218,90196.0,90195.0,0.05766051]
[1765687375298,0.07903148,90196.0,90195.0,0.05766051]
[1765687380309,0.09011748,90196.0,90195.0,0.05766051]
[1765687380710,0.07903148,90196.0,90195.0,0.05766051]
[1765687389413,0.13862218,90196.0,90195.0,0.05766051]
[1765687391615,0.07903148,90196.0,90195.0,0.05766051]
[1765687391820,0.07903148,90196.0,90195.0,0.06874661]
[1765687392211,0.07903148,90196.0,90195.0,0.08578661]
[1765687392416,0.05137148,90196.0,90195.0,0.08578661]
[1765687392820,0.08098148,90196.0,90195.0,0.08578661]
[1765687400624,0.08098148,90196.0,90195.0,0.00012051]
[1765687400829,0.08098148,90196.0,90195.0,0.02954051]
[1765687401016,0.08098148,90196.0,90195.0,0.00012051]
[1765687401822,0.14057218,90196.0,90195.0,0.00012051]
[1765687402626,0.14057218,90196.0,90195.0,0.02954051]
[1765687403017,0.08098148,90196.0,90195.0,0.00012051]
[1765687405028,0.1165652,90196.0,90195.0,0.05463051]
[1765687405327,0.08098148,90196.0,90195.0,0.05463051]
[1765687407324,0.08098148,90196.0,90195.0,0.00012051]
[1765687407824,0.05895,90190.0,90180.0,0.12521619]
[1765687408023,0.45493828,90190.0,90180.0,0.12521619]
[1765687408424,0.45493828,90190.0,90180.0,0.01704]
[1765687408627,0.45493828,90190.0,90180.0,0.23339238]
[1765687408922,0.45505405,90190.0,90180.0,0.23339238]
[1765687409731,0.45505405,90190.0,90180.0,0.01704]
[1765687410026,0.45505405,90190.0,90180.0,0.23339238]
[1765687410818,0.45505405,90190.0,90180.0,0.01704]
[1765687411031,0.45505405,90190.0,90180.0,0.23339238]
[1765687411226,0.45505405,90190.0,90180.0,0.01704]
[1765687411530,0.45505405,90190.0,90180.0,0.23339238]
[1765687411717,0.45505405,90190.0,90180.0,0.01704]
[1765687411925,0.45505405,90190.0,90180.0,0.12527104]
[1765687412623,0.45505405,90190.0,90180.0,0.01704]
[1765687412824,0.45505405,90190.0,90180.0,0.12527104]
[1765687414128,0.45505405,90190.0,90189.0,0.02888132]
[1765687414720,0.45505405,90190.0,90189.0,0.00011132]
[1765687415227,0.51464413,90190.0,90189.0,0.00011132]
[1765687415626,0.51464413,90190.0,90189.0,0.05595132]
[1765687416229,0.51464413,90190.0,90189.0,0.00011132]
[1765687419127,0.0700379,90181.0,90180.0,0.01704]
[1765687419326,0.45493938,90181.0,90180.0,0.01704]
[1765687419927,0.45493938,90181.0,90180.0,0.04581]
[1765687420526,0.45493938,90181.0,90180.0,0.04681]
[1765687420734,0.45493938,90181.0,90180.0,0.07388]
[1765687420933,0.45493938,90181.0,90180.0,0.07488]
[1765687423539,0.44385148,90181.0,90180.0,0.07488]
[1765687428048,0.44385148,90181.0,90180.0,0.085968]
[1765687428249,0.44385148,90181.0,90180.0,0.07488]
[1765687429252,0.44387283,90181.0,90180.0,0.07488]
[1765687433954,0.08307283,90181.0,90180.0,0.07488]
[1765687440058,0.09416073,90181.0,90180.0,0.085968]
[1765687440763,0.08307283,90181.0,90180.0,0.085968]
[1765687441057,0.05334283,90181.0,90180.0,0.085968]
[1765687441858,0.08317283,90181.0,90180.0,0.085968]
[1765687451568,0.02412283,90181.0,90180.0,0.085968]
[1765687453161,0.05352283,90181.0,90180.0,0.085968]
[1765687455868,0.02412283,90181.0,90180.0,0.085968]
[1765687456074,0.05951205,90190.0,90189.0,0.0677569]
[1765687457274,0.00028205,90190.0,90189.0,0.0677569]
[1765687457673,0.00128205,90190.0,90189.0,0.0677569]
[1765687458374,0.06051205,90190.0,90189.0,0.0677569]
[1765687460068,0.00128205,90190.0,90189.0,0.0677569]
[1765687460370,0.001,90190.0,90189.0,0.0677569]
[1765687460573,0.3718848,90206.0,90205.0,0.05667]
[1765687460574,0.4311148,90206.0,90205.0,0.05667]
[1765687461468,0.43123031,90206.0,90205.0,0.05667]
[1765687461665,0.43423031,90206.0,90205.0,0.05667]
[1765687461858,0.43723031,90206.0,90205.0,0.05667]
[1765687465073,0.07643031,90206.0,90205.0,0.05667]
[1765687465281,0.43723031,90206.0,90205.0,0.05667]
[1765687468074,0.46195596,90206.0,90205.0,0.05667]
[1765687468675,0.10115596,90206.0,90205.0,0.05667]
[1765687468875,0.46195596,90206.0,90205.0,0.05667]
[1765687479888,0.43212596,90206.0,90205.0,0.05667]
[1765687480085,0.43212596,90206.0,90205.0,0.0677549]
[1765687480086,0.45961596,90206.0,90205.0,0.0677549]
[1765687480279,0.45961596,90206.0,90205.0,0.05667]
[1765687482380,0.42104116,90206.0,90205.0,0.05667]
[1765687482584,0.44853116,90206.0,90205.0,0.05667]
[1765687488596,0.08773116,90206.0,90205.0,0.05667]
[1765687500997,0.03084116,90206.0,90205.0,0.05667]
[1765687501199,0.00016628,90215.0,90205.0,0.05667]
[1765687501200,0.00016628,90215.0,90214.0,0.0680338]
[1765687501402,0.05783628,90215.0,90214.0,0.05695]
[1765687502596,0.05883628,90215.0,90214.0,0.05695]
[1765687503104,0.05783628,90215.0,90214.0,0.05695]
[1765687503303,0.05983628,90215.0,90214.0,0.05695]
[1765687503705,0.06183628,90215.0,90214.0,0.05695]
[1765687504502,0.06083628,90215.0,90214.0,0.05695]
[1765687506502,0.05983628,90215.0,90214.0,0.0680338]
[1765687506802,0.05767,90214.0,90213.0,0.4341]
[1765687507196,0.05767,90214.0,90213.0,0.0733]
[1765687507392,0.05767,90214.0,90210.0,0.04518]
[1765687507393,0.05767,90211.0,90210.0,0.04518]
[1765687507707,0.05767,90205.0,90204.0,0.0749]
[1765687509598,0.05767,90205.0,90204.0,0.0759]
[1765687514001,0.08174043,90205.0,90204.0,0.0759]
[1765687515400,0.08274043,90205.0,90204.0,0.0749]
[1765687515805,0.08474043,90205.0,90204.0,0.0749]
[1765687516503,0.08274043,90205.0,90204.0,0.0749]
[1765687516704,0.08474043,90205.0,90204.0,0.0749]
[1765687519313,0.0110852,90203.0,90201.0,0.69248]
[1765687519615,0.08174043,90202.0,90201.0,0.72131]
[1765687519818,0.08174043,90202.0,90201.0,0.76578]
[1765687520813,0.08174043,90202.0,90201.0,0.69248]
[1765687521209,0.08174043,90202.0,90201.0,0.74943]
[1765687522219,0.08474043,90202.0,90201.0,0.74943]
[1765687522904,0.05767,90197.0,90196.0,0.05711628]
[1765687523112,0.44254043,90197.0,90196.0,0.07346628]
[1765687523321,0.44254043,90197.0,90196.0,0.00016628]
[1765687524114,0.44254043,90197.0,90196.0,0.02899628]
[1765687525012,0.44354043,90197.0,90196.0,0.02899628]
[1765687526216,0.44354043,90197.0,90196.0,0.00016628]
[1765687528724,0.44354043,90197.0,90196.0,0.02986628]
[1765687528918,0.44354043,90197.0,90196.0,0.00016628]
[1765687532524,0.44354043,90197.0,90196.0,0.05887628]
[1765687532928,0.44354043,90197.0,90196.0,0.00016628]
[1765687536833,0.05932,90175.0,90174.0,0.04731]
[1765687537129,0.05932,90163.0,90162.0,0.01761]
[1765687537429,0.05932,90159.0,90158.0,0.41355]
[1765687537628,0.08339043,90159.0,90158.0,0.41355]
[1765687538537,0.05932,90159.0,90158.0,0.41555]
[1765687538925,0.05932,90159.0,90158.0,0.41755]
[1765687542321,0.02944,90159.0,90158.0,0.41755]
[1765687542528,0.05932,90159.0,90158.0,0.41755]
[1765687544239,0.3608,90163.0,90162.0,0.05871]
[1765687544240,0.05932,90163.0,90162.0,0.05871]
[1765687545537,0.05932,90163.0,90162.0,0.05971]
[1765687545831,0.05932,90163.0,90162.0,0.06171]
[1765687546936,0.02944,90163.0,90162.0,0.06171]
[1765687547128,0.05932,90163.0,90162.0,0.06171]
[1765687547323,0.02944,90163.0,90162.0,0.06171]
[1765687547528,0.05932,90163.0,90162.0,0.06171]
[1765687549735,0.02944,90163.0,90162.0,0.06171]
[1765687549939,0.05948628,90168.0,90167.0,0.0697996]
[1765687550739,0.0405268,90191.0,90190.0,0.05871]
[1765687550933,0.09367945,90191.0,90190.0,0.05871]
[1765687551127,0.45447945,90191.0,90190.0,0.05871]
[1765687551733,0.44339265,90191.0,90190.0,0.05871]